[Event "127th NZ Congress 2020"]
[Site "Tauranga"]
[Date "2020.01.18"]
[Round "5.8"]
[White "Pinic, Noel"]
[Black "Milligan, Helen"]
[Result "1/2-1/2"]
[ECO "E94"]
[WhiteElo "2054"]
[BlackElo "1940"]
[Annotator "NA RC"]
[PlyCount "65"]
[EventDate "2020.01.14"]
[EventType "swiss"]
[EventCountry "NZL"]
[SourceTitle "playchess.com"]
[Source "ChessBase"]
[SourceQuality "1"]
[TimeControl "40/5400+30:1800+30"]

1. Nf3 {[%emt 0:00:00]} Nf6 {[%emt 0:00:00]} 2. d4 {[%emt 0:00:25]} g6 {[%emt 0:00:09]} 3. c4 {[%emt 0:00:53]} Bg7 {[%emt 0:00:32]} 4. Nc3 {[%emt 0:00:11]} d6 {[%emt 0:00:06]} 5. e4 {[%emt 0:00:16]} O-O {[%emt 0:01:47]} 6. Be2 {[%emt 0:00:59]} Nbd7 {[%emt 0:00:19]} 7. O-O {[%emt 0:01:39]} e5 {[%emt 0:00:48]} 8. dxe5 {[%emt 0:02:30]} dxe5 {[%emt 0:02:15]} 9. Qc2 {[%emt 0:00:21]} c6 {[%emt 0:02:13]} 10. Rd1 {[%emt 0:00:59]} Qe7 {[%emt 0:00:55]} 11. b3 {[%emt 0:00:33] E94: King's Indian: Classical: 6 Be2 e5 7 0-0: Various Black 7th moves} Re8 {[%emt 0:02:13]} 12. a4 {[%emt 0:00:17]} a5 {[%emt 0:03:21]} 13. Ba3 {[%emt 0:00:36]} Nc5 {[%emt 0:03:55]} 14. Ne1 {[%emt 0:00:15]} b6 {[%emt 1:18:27]} (14... h5 15. Nd3 Nfd7 16. Nb1 Bf8 17. Nd2 Qf6 18. Bb2 Nxd3 19. Bxd3 {½-½ (93) Ezat,M (2454)-Movsesian,S (2700) Antalya 2013}) 15. Nd3 Nfd7 {[%emt 0:00:30]} 16. Nxc5 $146 {[%emt 0:04:28]} ({Predecessor:} 16. Bg4 Nf8 17. Bxc8 Raxc8 18. Nxc5 bxc5 {½-½ (66) Podzielny,K-De Jonghe,P Schilde 1971}) 16... Nxc5 {[%emt 0:00:00]} 17. Rd3 {[%emt 0:01:21]} Bf8 {[%emt 0:00:00]} 18. Bxc5 {[%emt 0:01:00]} Qxc5 {[%emt 0:00:00]} 19. Qd2 {[%emt 0:02:53]} Be6 {[%emt 0:00:00]} 20. h4 {[%emt 0:04:30]} Qe7 {[%emt 0:00:00]} 21. h5 $17 {[%emt 0:01:57]} Rad8 {[%emt 0:00:00]} 22. Rd1 {[%emt 0:00:59]} Rxd3 {[%emt 0:00:00]} 23. Qxd3 {[%emt 0:00:07]} Qg5 {[%emt 0:00:00]} 24. hxg6 {[%emt 0:01:01]} hxg6 {[%emt 0:00:00]} 25. Kf1 {[%emt 0:01:52]} Bc5 {[%emt 0:00:00]} 26. Bf3 {[%emt 0:00:11]} Kg7 {[%emt 0:00:00]} 27. Ne2 {[%emt 0:03:41]} Rh8 {[%emt 0:00:00]} 28. Ng3 {[%emt 0:00:39]} Qf4 {[%emt 0:00:00]} 29. Qd2 {[%emt 0:05:47]} Qxd2 {[%emt 0:00:00]} 30. Rxd2 {[%emt 0:00:19]} Kf6 {[%emt 0:00:00]} 31. Kg1 {[%emt 0:02:12]} Ke7 {[%emt 0:00:00]} 32. Be2 {[%emt 0:03:31]} Rd8 {[%emt 0:00:00]} 33. Rxd8 {[%emt 0:05:32]} 1/2-1/2

[Event "127th NZ Congress 2020"]
[Site "Tauranga"]
[Date "2020.01.18"]
[Round "5.9"]
[White "Reilly, Tim"]
[Black "Vickers, Josia"]
[Result "1-0"]
[ECO "E49"]
[WhiteElo "2098"]
[BlackElo "1878"]
[Annotator "NA RC"]
[PlyCount "53"]
[EventDate "2020.01.14"]
[EventType "swiss"]
[EventCountry "NZL"]
[SourceTitle "playchess.com"]
[Source "ChessBase"]
[SourceQuality "1"]
[TimeControl "40/5400+30:1800+30"]

1. d4 {[%emt 0:00:00]} Nf6 {[%emt 0:00:00]} 2. c4 {[%emt 0:00:18]} e6 {[%emt 0:00:01]} 3. Nc3 {[%emt 0:00:07]} Bb4 {[%emt 0:00:05]} 4. e3 {[%emt 0:01:12]} O-O {[%emt 0:00:31]} 5. Bd3 {[%emt 0:00:32]} d5 {[%emt 0:00:36]} 6. Nge2 {[%emt 1:30:51]} c5 {[%emt 0:03:34]} 7. a3 {[%emt 0:00:00]} Bxc3+ {[%emt 0:08:01]} 8. bxc3 {[%emt 0:00:00]} Nc6 {[%emt 0:04:17]} 9. cxd5 {[%emt 0:00:00]} exd5 {[%emt 0:05:38]} 10. O-O {[%emt 0:00:00]} b6 {[%emt 0:05:34]} 11. f3 {[%emt 0:00:00]} Re8 {[%emt 0:02:44]} 12. Ng3 {[%emt 0:00:00]} Bb7 {[%emt 0:02:52]} 13. Ra2 {[%emt 0:00:00] E49: Nimzo-Indian: Rubinstein: 5 Bd3 d5 6 a3 Bxc3+ 7 bxc3} g6 {[%emt 0:04:38]} (13... h5 14. Re2 g6 15. Qe1 Qc8 16. Bb2 Ba6 17. Bxa6 Qxa6 18. e4 cxd4 19. cxd4 Qc4 {1-0 (28) Hakobyan,A (2554)-Gavrilescu,D (2470) Manavgat 2018}) 14. Re2 {[%emt 0:00:00]} Qd6 $146 {[%emt 0:01:51]} ({Predecessor:} 14... Rc8 15. Kh1 cxd4 16. cxd4 Qd6 17. Bb2 h5 18. e4 h4 19. e5 Qd8 20. exf6 hxg3 21. Rxe8+ Qxe8 22. Qd2 gxh2 23. f4 Rc7 24. f5 Nd8 25. Qg5 Kh7 26. Bc1 {1-0 (26) Di Franco,P (2118)-Leck,G (1930) Bad Homburg 2018}) 15. Qe1 {[%emt 0:00:00]} Kg7 {[%emt 0:05:00]} 16. Qf2 {[%emt 0:00:00]} cxd4 {[%emt 0:09:10]} 17. cxd4 {[%emt 0:00:00]} Rac8 {[%emt 0:01:42] [#]} 18. Bb2 {[%emt 0:00:00]} (18. e4 $1 $18 {[%cal Re4e5]} dxe4 19. Nxe4 Nxe4 20. fxe4) 18... Rc7 {[%emt 0:06:14]} 19. e4 {[%emt 0:00:00]} dxe4 {[%emt 0:00:53]} 20. fxe4 {[%emt 0:00:00]} Ng4 {[%emt 0:02:21]} 21. Qf3 {[%emt 0:00:00]} h5 {[%emt 0:04:39]} 22. h3 {[%emt 0:00:00]} Nh6 {[%emt 0:04:41]} 23. e5 {[%emt 0:00:00]} Qd8 {[%emt 0:05:52]} 24. d5 {[%emt 0:00:00]} Ne7 {[%emt 0:01:05]} 25. Nxh5+ {[%emt 0:00:00]} (25. e6+ $142 Kh7 26. exf7 Rh8 27. Qxh5 Rc6 28. dxc6 Nef5 29. Bxf5 gxf5 30. Re6 Qf6 31. Bxf6 Rc8 32. Nxf5 Bxc6 33. Qxh6#) 25... gxh5 {[%emt 0:03:01]} 26. Qf6+ {[%emt 0:00:00]} Kg8 {[%emt 0:01:23]} 27. e6 {[%emt 0:00:00]} 1-0

[Event "127th NZ Congress 2020"]
[Site "Tauranga"]
[Date "2020.01.18"]
[Round "5.10"]
[White "Dowden, R.A. Tony"]
[Black "Park-Tamati, Philli"]
[Result "1-0"]
[ECO "A10"]
[WhiteElo "2056"]
[BlackElo "1537"]
[Annotator "NA RC"]
[PlyCount "97"]
[EventDate "2020.01.14"]
[EventType "swiss"]
[EventCountry "NZL"]
[SourceTitle "playchess.com"]
[Source "ChessBase"]
[SourceQuality "1"]
[TimeControl "40/5400+30:1800+30"]

{[%evp 15,96,62,32767,35,32767,0,32767,45,51,50,52,32767,32767,32767,32767,32767,32767,32767,32767,32767,32767,0,99,62,79,71,119,74,73,77,75,75,76,75,49,76,108,78,93,87,104,32767,83,83,32767,76,99,60,32767,60,77,50,68,55,50,81,48,0,50,0,56,39,68,20,84,84,79,24,32767,32767,32767,32767,32767,32767,171,184,32767,32767,247,287,380,334,343]} 1. e4 {[%emt 0:00:00]} b6 {[%emt 0:00:00]} 2. c4 {[%emt 0:00:00]} Bb7 {[%emt 0:00:00]} 3. Nc3 {[%emt 0:00:06]} e6 {[%emt 1:31:30]} 4. Nge2 {[%emt 0:00:15]} Bb4 {[%emt 0:00:00]} (4... c5 5. g3 Nc6 6. Bg2 Nge7 7. a3 Nd4 8. Nxd4 cxd4 9. Ne2 Nc6 10. d3 g6 11. b4 Bg7 12. h4 {0-1 (35) Cornette,M (2597)-Abdusattorov,N (2534) Porticcio 2018}) 5. g3 {[%emt 0:03:24]} Nc6 {[%emt 0:00:00]} 6. Bg2 {[%emt 0:07:48] A10: English Opening: Unusual Replies for Black} e5 $146 {[%emt 0:00:00]} ({Predecessor:} 6... Nge7 7. O-O O-O 8. d4 d5 9. exd5 exd5 10. Nxd5 Nxd5 11. Bxd5 {1-0 (26) Leidorf,S-Brehme,S GER email 2013}) 7. O-O {[%emt 0:08:00]} Nf6 {[%emt 0:00:00]} 8. d3 {[%emt 0:08:33]} a5 {[%emt 0:00:00]} 9. h3 {[%emt 0:07:43]} Bc5 {[%emt 0:00:00]} 10. Na4 {[%emt 0:10:55]} Bd4 {[%emt 0:00:00]} 11. Nxd4 {[%emt 0:02:03]} Nxd4 {[%emt 0:00:00]} 12. f4 {[%emt 0:01:06]} d6 {[%emt 0:00:00]} 13. fxe5 {[%emt 0:00:29]} dxe5 {[%emt 0:00:00]} 14. Bg5 {[%emt 0:00:08]} Bc6 {[%emt 0:00:00]} 15. Nc3 {[%emt 0:04:01]} h6 {[%emt 0:00:00]} 16. Bxf6 {[%emt 0:07:47]} gxf6 {[%emt 0:00:00]} 17. Qd2 {[%emt 0:00:40]} Qd6 {[%emt 0:00:00]} 18. Kh2 {[%emt 0:07:33]} Rd8 {[%emt 0:00:00]} (18... h5 $11) 19. Rae1 {[%emt 0:03:08]} Kf8 {[%emt 0:00:00]} 20. h4 {[%emt 0:01:20]} Bb7 {[%emt 0:00:00]} (20... Kg7 $14) 21. Qf2 {[%emt 0:00:33]} Kg7 {[%emt 0:00:00]} 22. Bh3 {[%emt 0:01:05]} c6 {[%emt 0:00:00]} 23. Nd1 {[%emt 0:00:24]} Bc8 {[%emt 0:00:00]} 24. Bxc8 {[%emt 0:00:09]} Rxc8 {[%emt 0:00:00]} 25. Ne3 {[%emt 0:00:41]} h5 {[%emt 0:00:00]} 26. Rg1 {[%emt 0:00:26]} Kf8 {[%emt 0:00:00]} 27. Ref1 {[%emt 0:00:33]} Ke7 {[%emt 0:00:00]} 28. Rc1 {[%emt 0:02:06]} Qe6 {[%emt 0:00:00]} 29. Rgf1 {[%emt 0:00:12]} Rcd8 {[%emt 0:00:00]} 30. Rc3 {[%emt 0:02:19]} Rdg8 {[%emt 0:00:00]} 31. Nf5+ {[%emt 0:02:04]} Nxf5 {[%emt 0:00:00]} 32. exf5 {[%emt 0:00:06]} Qd7 {[%emt 0:00:00]} 33. Qxb6 {[%emt 0:00:13]} Rb8 {[%emt 0:00:00]} 34. Qc5+ {[%emt 0:00:08]} Qd6 {[%emt 0:00:00]} 35. Qa7+ {[%emt 0:01:03]} ({But not} 35. Qxa5 Rxb2+ 36. Kh3 Rhb8 $11) 35... Qd7 {[%emt 0:00:00]} 36. Qc5+ {[%emt 0:00:08]} Qd6 {[%emt 0:00:00]} 37. Qa7+ {[%emt 0:00:24]} Qd7 {[%emt 0:00:00]} 38. Qxd7+ {[%emt 0:00:12]} Kxd7 {[%emt 0:00:00]} 39. Rf2 {[%emt 0:00:09]} Rhg8 {[%emt 0:00:00]} (39... Kd6 $11) 40. Ra3 {[%emt 0:00:00]} Ra8 {[%emt 0:00:00]} 41. Re2 {[%emt 0:06:15]} Kc7 {[%emt 0:00:00]} 42. c5 {[%emt 0:05:27]} Rgb8 {[%emt 0:04:03]} 43. g4 {[%emt 0:02:14]} hxg4 {[%emt 0:00:43]} 44. d4 {[%emt 0:00:32]} Rb4 {[%emt 0:08:57]} 45. dxe5 {[%emt 0:00:43]} fxe5 {[%emt 0:00:10]} 46. Rxe5 {[%emt 0:00:07]} Rxb2+ {[%emt 0:00:06]} 47. Kg3 {[%emt 0:00:06]} Kb7 {[%emt 0:08:10]} 48. Re7+ $18 {[%emt 0:02:50]} Ka6 {[%emt 0:00:07]} 49. Rxf7 {[%emt 0:03:35]} 1-0

[Event "127th NZ Congress 2020"]
[Site "Tauranga"]
[Date "2020.01.19"]
[Round "6.1"]
[White "Johansen, Darryl K"]
[Black "Fernandez, Daniel Howard"]
[Result "1/2-1/2"]
[ECO "A13"]
[WhiteElo "2371"]
[BlackElo "2451"]
[Annotator "ChessBase"]
[PlyCount "87"]
[EventDate "2020.01.14"]
[EventType "swiss"]
[EventCountry "NZL"]
[SourceTitle "playchess.com"]
[Source "ChessBase"]
[SourceQuality "1"]
[TimeControl "40/5400+30:1800+30"]

1. c4 {[%emt 0:00:00]} e6 {[%emt 0:19:32]} 2. Nf3 {[%emt 0:00:03]} b6 {[%emt 0:04:07]} 3. g3 {[%emt 0:03:16]} Bb7 {[%emt 0:03:08]} 4. Bg2 {[%emt 0:00:11]} f5 {[%emt 0:03:14]} 5. d4 {[%emt 0:01:35]} Bb4+ {[%emt 0:04:33]} 6. Bd2 {[%emt 0:00:19]} a5 {[%emt 0:00:45]} 7. O-O {[%emt 0:00:19]} Nf6 {[%emt 0:00:29]} 8. Bg5 {[%emt 0:01:21]} Be7 {[%emt 0:00:23]} 9. Nc3 {[%emt 0:01:16]} O-O {[%emt 0:09:55]} 10. Qc2 {[%emt 0:07:13]} Qc8 {[%emt 0:10:22]} 11. Rad1 {[%emt 0:06:06]} h6 {[%emt 0:03:00]} 12. Bxf6 {[%emt 0:00:17]} Bxf6 {[%emt 0:00:31]} 13. e4 {[%emt 0:00:13]} g6 {[%emt 0:06:19]} 14. Rfe1 {[%emt 0:05:12]} Na6 {[%emt 0:06:37]} 15. a3 {[%emt 0:06:06]} Rb8 {[%emt 0:02:45]} 16. h4 {[%emt 0:12:39]} Bg7 {[%emt 0:00:25]} 17. exf5 {[%emt 0:02:15]} gxf5 {[%emt 0:02:45]} 18. d5 {[%emt 0:01:36]} Qe8 {[%emt 0:06:01]} 19. Ne5 {[%emt 0:05:45]} Nc5 {[%emt 0:06:52]} 20. b4 {[%emt 0:18:54]} axb4 {[%emt 0:00:11]} 21. axb4 {[%emt 0:00:07]} Ne4 {[%emt 0:01:02]} 22. Nxe4 {[%emt 0:00:36]} Bxe5 {[%emt 0:00:49]} 23. Nc3 {[%emt 0:00:37]} Bd6 {[%emt 0:02:20]} 24. Qb3 {[%emt 0:05:25]} Qf7 {[%emt 0:04:08]} 25. Nb5 {[%emt 0:00:18]} e5 {[%emt 0:00:32]} 26. Qc3 {[%emt 0:01:08]} f4 {[%emt 0:01:26]} 27. Nxd6 {[%emt 0:01:48]} cxd6 {[%emt 0:00:02]} 28. b5 {[%emt 0:00:08]} Rbc8 {[%emt 0:00:12]} 29. Qd3 {[%emt 0:00:38]} Qf5 {[%emt 0:01:31]} 30. Qxf5 {[%emt 0:01:05]} Rxf5 {[%emt 0:00:02]} 31. Re4 {[%emt 0:00:10]} Ra8 {[%emt 0:00:31]} 32. Bh3 {[%emt 0:01:44]} Rf7 {[%emt 0:00:38]} 33. gxf4 {[%emt 0:00:14]} Ra3 {[%emt 0:00:01]} 34. Bg2 {[%emt 0:09:00]} Rc3 {[%emt 0:01:15]} 35. Rd2 {[%emt 0:06:46]} Rg7 {[%emt 0:00:32]} 36. Kh2 {[%emt 0:00:06]} Rg4 {[%emt 0:00:12]} 37. f3 {[%emt 0:01:46]} Rxh4+ {[%emt 0:00:08]} 38. Kg1 {[%emt 0:00:04]} Kf7 {[%emt 0:01:07]} 39. Kf2 {[%emt 0:00:46]} Ke7 {[%emt 0:00:35]} 40. Rde2 {[%emt 0:00:00]} Kd8 {[%emt 0:00:00]} 41. R2e3 {[%emt 0:11:26]} Rc2+ {[%emt 0:00:45]} 42. Re2 {[%emt 0:00:05]} Rc3 {[%emt 0:00:04]} 43. R2e3 {[%emt 0:00:05]} Rc2+ {[%emt 0:00:09]} 44. Re2 {[%emt 0:00:05]} 1/2-1/2

[Event "127th NZ Congress 2020"]
[Site "Tauranga"]
[Date "2020.01.19"]
[Round "6.5"]
[White "Clarke, Brandon G I"]
[Black "Pinic, Noel"]
[Result "1-0"]
[ECO "B10"]
[WhiteElo "2438"]
[BlackElo "2054"]
[Annotator "ChessBase"]
[PlyCount "115"]
[EventDate "2020.01.14"]
[EventType "swiss"]
[EventCountry "NZL"]
[SourceTitle "playchess.com"]
[Source "ChessBase"]
[SourceQuality "1"]
[TimeControl "40/5400+30:1800+30"]

1. e4 {[%emt 0:01:39]} c6 {[%emt 0:00:00]} 2. Ne2 {[%emt 0:01:54]} e5 {[%emt 0:02:21]} 3. d4 {[%emt 0:01:03]} Nf6 {[%emt 0:01:48]} 4. Nbc3 {[%emt 0:03:48]} exd4 {[%emt 0:05:00]} 5. Qxd4 {[%emt 0:00:47]} d5 {[%emt 0:02:37]} 6. exd5 {[%emt 0:00:17]} Nxd5 {[%emt 0:00:25]} 7. Nxd5 {[%emt 0:00:12]} Qxd5 {[%emt 0:01:27]} 8. Qxd5 {[%emt 0:00:04]} cxd5 {[%emt 0:00:01]} 9. Be3 {[%emt 0:00:02]} Be6 {[%emt 0:00:47]} 10. O-O-O {[%emt 0:01:07]} Nc6 {[%emt 0:00:30]} 11. Nd4 {[%emt 0:02:01]} Bc5 {[%emt 0:02:47]} 12. g3 {[%emt 0:01:26]} O-O-O {[%emt 0:05:35]} 13. Bg2 {[%emt 0:00:21]} Rhe8 {[%emt 0:00:53]} 14. h3 {[%emt 0:02:33]} h6 {[%emt 0:02:54]} 15. c3 {[%emt 0:05:17]} Bb6 {[%emt 0:00:45]} 16. Rd2 {[%emt 0:00:32]} Rd7 {[%emt 0:04:51]} 17. Rhd1 {[%emt 0:00:20]} Nxd4 {[%emt 0:08:54]} 18. Bxd4 {[%emt 0:04:11]} Bxd4 {[%emt 0:00:14]} 19. Rxd4 {[%emt 0:00:03]} Red8 {[%emt 0:00:26]} 20. Kd2 {[%emt 0:01:54]} Kc7 {[%emt 0:02:51]} 21. Re1 {[%emt 0:04:07]} Rd6 {[%emt 0:00:33]} 22. g4 {[%emt 0:03:06]} h5 {[%emt 0:06:01]} 23. gxh5 {[%emt 0:00:31]} Rh8 {[%emt 0:00:04]} 24. Bf3 {[%emt 0:00:33]} Bxh3 {[%emt 0:10:36]} 25. Re7+ {[%emt 0:00:36]} Rd7 {[%emt 0:00:19]} 26. Rxd7+ {[%emt 0:00:52]} Bxd7 {[%emt 0:00:05]} 27. Rxd5 {[%emt 0:01:18]} g6 {[%emt 0:02:23]} 28. hxg6 {[%emt 0:01:28]} fxg6 {[%emt 0:00:04]} 29. Rc5+ {[%emt 0:02:43]} Kb8 {[%emt 0:03:49]} 30. Be4 {[%emt 0:00:17]} Rf8 {[%emt 0:00:31]} 31. Ke3 {[%emt 0:00:18]} Re8 {[%emt 0:14:33]} 32. Kd4 {[%emt 0:02:30]} Re6 {[%emt 0:00:44]} 33. Rg5 {[%emt 0:02:05]} Rb6 {[%emt 0:02:26]} 34. b3 {[%emt 0:00:53]} Ra6 {[%emt 0:01:58]} 35. a4 {[%emt 0:00:06]} Rb6 {[%emt 0:00:51]} 36. Bc2 {[%emt 0:01:25]} Rf6 {[%emt 0:01:26]} 37. Ke3 {[%emt 0:05:06]} Bc6 {[%emt 0:01:45]} 38. f4 {[%emt 0:00:29]} Be8 {[%emt 0:00:43]} 39. Be4 {[%emt 0:01:21]} Rb6 {[%emt 0:01:13]} 40. Bd5 {[%emt 0:00:00]} Bd7 {[%emt 0:00:00]} 41. Kd4 {[%emt 0:01:18]} Kc7 {[%emt 0:02:50]} 42. Ke5 {[%emt 0:01:00]} Bf5 {[%emt 0:00:19]} 43. Rg2 {[%emt 0:00:26]} Rd6 {[%emt 0:00:22]} 44. c4 {[%emt 0:00:40]} Rd7 {[%emt 0:03:01]} 45. Rh2 {[%emt 0:00:15]} a5 {[%emt 0:02:37]} 46. b4 {[%emt 0:03:37]} axb4 {[%emt 0:02:38]} 47. Rb2 {[%emt 0:04:25]} b6 {[%emt 0:00:25]} 48. Rxb4 {[%emt 0:00:09]} Bc2 {[%emt 0:00:17]} 49. Kd4 {[%emt 0:02:14]} Rd6 {[%emt 0:03:41]} 50. a5 {[%emt 0:13:15]} bxa5 {[%emt 0:00:08]} 51. Rb7+ {[%emt 0:00:06]} Kc8 {[%emt 0:02:19]} 52. Ra7 {[%emt 0:00:08]} a4 {[%emt 0:01:08]} 53. c5 {[%emt 0:09:39]} Rf6 {[%emt 0:00:34]} 54. c6 {[%emt 0:03:24]} Bb3 {[%emt 0:03:55]} 55. Bg2 {[%emt 0:00:03]} Rxf4+ {[%emt 0:02:54]} 56. Ke5 {[%emt 0:02:52]} Rf7 {[%emt 0:00:41]} 57. Bh3+ {[%emt 0:00:47]} Rf5+ {[%emt 0:03:19]} 58. Bxf5+ {[%emt 0:00:14]} 1-0

[Event "127th NZ Congress 2020"]
[Site "Tauranga"]
[Date "2020.01.20"]
[Round "7.3"]
[White "Dive, Russell John"]
[Black "Clarke, Brandon G I"]
[Result "1/2-1/2"]
[ECO "A26"]
[WhiteElo "2283"]
[BlackElo "2438"]
[Annotator "ChessBase"]
[PlyCount "55"]
[EventDate "2020.01.14"]
[EventType "swiss"]
[EventCountry "NZL"]
[SourceTitle "playchess.com"]
[Source "ChessBase"]
[SourceQuality "1"]
[TimeControl "40/5400+30:1800+30"]

1. Nf3 {[%emt 0:00:00]} g6 {[%emt 0:04:42]} 2. c4 {[%emt 0:00:00]} Bg7 {[%emt 0:00:05]} 3. g3 {[%emt 0:00:00]} e5 {[%emt 0:00:39]} 4. Nc3 {[%emt 0:00:10]} Nc6 {[%emt 0:00:16]} 5. Bg2 {[%emt 0:00:08]} Nge7 {[%emt 0:00:22]} 6. O-O {[%emt 0:00:23]} O-O {[%emt 0:00:04]} 7. Rb1 {[%emt 0:00:24]} a5 {[%emt 0:00:58]} 8. a3 {[%emt 0:01:11]} f5 {[%emt 0:01:02]} 9. d3 {[%emt 0:00:18]} d6 {[%emt 0:00:26]} 10. Qc2 {[%emt 0:03:20]} h6 {[%emt 0:12:18]} 11. b4 {[%emt 0:00:32]} axb4 {[%emt 0:00:11]} 12. axb4 {[%emt 0:00:02]} Be6 {[%emt 0:00:56]} 13. b5 {[%emt 0:02:01]} Nb8 {[%emt 0:02:44]} 14. Nd2 {[%emt 0:02:46]} c6 {[%emt 0:00:41]} 15. Bb2 {[%emt 0:05:20]} Nd7 {[%emt 0:13:19]} 16. Ra1 {[%emt 0:01:03]} Qb6 {[%emt 0:25:58]} 17. bxc6 {[%emt 0:06:22]} bxc6 {[%emt 0:00:07]} 18. Rxa8 {[%emt 0:00:14]} Rxa8 {[%emt 0:00:03]} 19. Rb1 {[%emt 0:00:11]} Ra6 {[%emt 0:07:12]} 20. e3 {[%emt 0:05:59]} Qa7 {[%emt 0:01:21]} 21. Bf1 {[%emt 0:01:38]} f4 {[%emt 0:02:37]} 22. exf4 {[%emt 0:15:07]} exf4 {[%emt 0:00:01]} 23. Nce4 {[%emt 0:00:25]} Ra2 {[%emt 0:00:31]} 24. Nc3 {[%emt 0:07:07]} Ra5 {[%emt 0:02:03]} 25. Nce4 {[%emt 0:00:30]} Ra2 {[%emt 0:07:17]} 26. Nc3 {[%emt 0:00:19]} Ra5 {[%emt 0:01:30]} 27. Nce4 {[%emt 0:00:07]} Ra2 {[%emt 0:03:33]} 28. Nc3 {[%emt 0:00:10]} 1/2-1/2

[Event "127th NZ Congress 2020"]
[Site "Tauranga"]
[Date "2020.01.20"]
[Round "7.9"]
[White "Reilly, Tim"]
[Black "Winter, Ryan"]
[Result "1-0"]
[ECO "E48"]
[WhiteElo "2098"]
[BlackElo "1862"]
[Annotator "NA RC"]
[PlyCount "80"]
[EventDate "2020.01.14"]
[EventType "swiss"]
[EventCountry "NZL"]
[SourceTitle "playchess.com"]
[Source "ChessBase"]
[SourceQuality "1"]
[TimeControl "40/5400+30:1800+30"]

{[%evp 21,77,0,34,16,30,15,32767,8,32767,-13,2,-52,20,7,14,2,0,0,17,0,0,0,23,-3,-3,-6,-4,32767,-8,32767,32767,32767,32767,32767,32767,-70,32767,-27,0,0,0,0,87,74,72,88,83,90,85,83,66,72,70,84,155,154,156,156]} 1. d4 {[%emt 0:00:00]} Nf6 {[%emt 0:00:00]} 2. c4 {[%emt 0:00:00]} e6 {[%emt 0:00:21]} 3. Nc3 {[%emt 0:00:00]} Bb4 {[%emt 0:00:00]} 4. e3 {[%emt 0:00:36]} O-O {[%emt 0:00:57]} 5. Bd3 {[%emt 0:00:12]} d5 {[%emt 0:04:49]} 6. Nge2 {[%emt 0:01:12]} dxc4 {[%emt 0:05:56]} 7. Bxc4 {[%emt 0:00:10]} e5 {[%emt 0:00:11]} 8. O-O {[%emt 0:02:27]} Nc6 {[%emt 0:02:09]} 9. a3 {[%emt 0:02:50] E48: Nimzo-Indian: Rubinstein: 5 Bd3 d5 including 6 Ne2, but excluding 6 a3} Bd6 {[%emt 0:01:41]} 10. d5 {[%emt 0:16:39]} Ne7 {[%emt 0:04:03]} 11. e4 {[%emt 0:01:00]} Ng6 {[%emt 0:17:34]} 12. b4 {[%emt 0:02:02]} a6 {[%emt 0:17:06]} 13. Ng3 $146 {[%emt 0:09:17]} ({Predecessor:} 13. f3 Nh5 14. Be3 Nhf4 15. Kh1 h5 16. g3 Nh3 {½-½ (65) Turov,M (2546)-Sakaev,K (2639) Linares 2001}) 13... Nf4 {[%emt 0:13:29]} 14. Re1 {[%emt 0:03:15]} Bd7 {[%emt 0:02:23]} 15. Qc2 {[%emt 0:05:11]} Re8 {[%emt 0:03:11]} 16. Bb2 {[%emt 0:02:19]} g6 {[%emt 0:03:41]} 17. Nce2 {[%emt 0:10:10]} Nxe2+ {[%emt 0:03:15]} 18. Bxe2 {[%emt 0:04:06]} c6 {[%emt 0:01:39]} 19. dxc6 {[%emt 0:02:04]} Bxc6 {[%emt 0:00:17]} 20. Bc4 {[%emt 0:00:19]} Qe7 {[%emt 0:01:41]} 21. Qd2 {[%emt 0:01:23]} Rad8 {[%emt 0:03:46]} 22. Qe3 {[%emt 0:01:56]} Bc7 {[%emt 0:00:53]} 23. Qg5 {[%emt 0:12:56]} Nd7 {[%emt 0:02:04]} 24. Bc1 {[%emt 0:03:46]} Qxg5 {[%emt 0:01:29]} 25. Bxg5 {[%emt 0:00:06]} Rc8 {[%emt 0:00:10]} 26. Rad1 {[%emt 0:04:36]} Kg7 {[%emt 0:01:54]} 27. Bb3 {[%emt 0:03:26]} Bb6 {[%emt 0:01:46]} 28. Ne2 {[%emt 0:02:55]} (28. Rd6 $11) 28... f6 {[%emt 0:02:54]} 29. Bc1 {[%emt 0:00:09]} Nb8 {[%emt 0:00:27]} 30. Nc3 {[%emt 0:00:38]} Bd4 {[%emt 0:01:16]} 31. Nd5 {[%emt 0:00:24]} Rcd8 {[%emt 0:00:24]} (31... Bxd5 $11 {remains equal.} 32. Bxd5 b5) 32. Nc7 {[%emt 0:00:30]} Re7 $1 {[%emt 0:01:00]} 33. Ne6+ {[%emt 0:00:09]} Rxe6 {[%emt 0:00:04]} 34. Bxe6 {[%emt 0:00:06]} Ba4 {[%emt 0:00:56]} 35. Rd2 {[%emt 0:02:58]} Re8 {[%emt 0:00:34]} 36. Bd5 {[%emt 0:00:23]} Bc3 {[%emt 0:00:52]} 37. Bxb7 {[%emt 0:00:26]} Bxd2 {[%emt 0:00:38]} (37... Re7 $142 38. Bd5 Nc6) 38. Bxd2 {[%emt 0:00:06]} Rd8 {[%emt 0:01:00]} 39. Be3 $16 {[%emt 0:00:28]} Rd3 {[%emt 0:01:15]} 40. Rc1 {[%emt 0:00:00]} Rxa3 {[%emt 0:02:15]} 1-0